[Event "Titled Tuesday Blitz April 25 Early 2023"]
[White "Moussard, Jules"]
[Black "Camacho Collados, Jose"]
[WhiteFideId "642908"]
[BlackFideId "2265427"]
[WhiteElo "2610"]
[BlackElo "2198"]
[Result "1-0"]
[Round "01"]
[TimeControl "180+2"]
[Date "2023.04.25"]
[WhiteClock "0:01:38"]
[BlackClock "0:00:03"]

1. Nf3 {[%clk 0:02:51]}  b6 {[%clk 0:02:59]} 2. c4 {[%clk 0:02:49]}  Bb7 {[%clk 0:02:59]} 3. Nc3 {[%clk 0:02:50]}  e6 {[%clk 0:03:00]} 4. g3 {[%clk 0:02:49]}  Nf6 {[%clk 0:02:59]} 5. Bg2 {[%clk 0:02:50]}  d5 {[%clk 0:02:57]} 6. cxd5 {[%clk 0:02:49]}  exd5 {[%clk 0:02:57]} 7. d4 {[%clk 0:02:49]}  a6 {[%clk 0:02:55]} 8. O-O {[%clk 0:02:49]}  Bd6 {[%clk 0:02:56]} 9. Ne5 {[%clk 0:02:46]}  Nbd7 {[%clk 0:02:55]} 10. Bf4 {[%clk 0:02:46]}  O-O {[%clk 0:02:54]} 11. Rc1 {[%clk 0:02:40]}  Qe7 {[%clk 0:02:53]} 12. Nd3 {[%clk 0:02:35]}  Rfe8 {[%clk 0:02:48]} 13. e3 {[%clk 0:02:34]}  h6 {[%clk 0:02:44]} 14. Qb3 {[%clk 0:02:33]}  Bxf4 {[%clk 0:02:34]} 15. Nxf4 {[%clk 0:02:32]}  c6 {[%clk 0:02:35]} 16. Rfe1 {[%clk 0:02:26]}  Qd6 {[%clk 0:02:31]} 17. Na4 {[%clk 0:02:23]}  b5 {[%clk 0:02:02]} 18. Nc5 {[%clk 0:02:21]}  Nxc5 {[%clk 0:02:02]} 19. Rxc5 {[%clk 0:02:20]}  Bc8 {[%clk 0:02:01]} 20. Rec1 {[%clk 0:02:16]}  Bd7 {[%clk 0:02:01]} 21. Nd3 {[%clk 0:02:16]}  Ne4 {[%clk 0:01:59]} 22. R5c2 {[%clk 0:02:17]}  a5 {[%clk 0:01:55]} 23. Ne5 {[%clk 0:02:16]}  a4 {[%clk 0:01:49]} 24. Qd3 {[%clk 0:02:13]}  Ra6 {[%clk 0:01:41]} 25. Bxe4 {[%clk 0:02:04]}  dxe4 {[%clk 0:01:41]} 26. Qxe4 {[%clk 0:02:05]}  f6 {[%clk 0:01:36]} 27. Qg6 {[%clk 0:02:04]}  Re7 {[%clk 0:01:18]} 28. Nxd7 {[%clk 0:01:55]}  Qxd7 {[%clk 0:01:16]} 29. Rc5 {[%clk 0:01:53]}  Qe6 {[%clk 0:01:12]} 30. d5 {[%clk 0:01:51]}  Qf7 {[%clk 0:00:44]} 31. Qxf7+ {[%clk 0:01:50]}  Kxf7 {[%clk 0:00:45]} 32. dxc6 {[%clk 0:01:49]}  Rc7 {[%clk 0:00:45]} 33. Kf1 {[%clk 0:01:47]}  Ke6 {[%clk 0:00:45]} 34. Ke2 {[%clk 0:01:48]}  Kd6 {[%clk 0:00:45]} 35. Kd3 {[%clk 0:01:48]}  Raxc6 {[%clk 0:00:44]} 36. Rxc6+ {[%clk 0:01:48]}  Rxc6 {[%clk 0:00:45]} 37. Rxc6+ {[%clk 0:01:48]}  Kxc6 {[%clk 0:00:46]} 38. Kd4 {[%clk 0:01:48]}  Kd6 {[%clk 0:00:46]} 39. e4 {[%clk 0:01:48]}  g5 {[%clk 0:00:43]} 40. f4 {[%clk 0:01:48]}  g4 {[%clk 0:00:38]} 41. e5+ {[%clk 0:01:47]}  Ke6 {[%clk 0:00:35]} 42. a3 {[%clk 0:01:44]}  h5 {[%clk 0:00:20]} 43. exf6 {[%clk 0:01:42]}  Kxf6 {[%clk 0:00:21]} 44. Ke4 {[%clk 0:01:43]}  Ke6 {[%clk 0:00:12]} 45. f5+ {[%clk 0:01:43]}  Ke7 {[%clk 0:00:08]} 46. Ke5 {[%clk 0:01:44]}  Kf7 {[%clk 0:00:08]} 47. f6 {[%clk 0:01:44]}  Kf8 {[%clk 0:00:04]} 48. Ke6 {[%clk 0:01:42]}  Ke8 {[%clk 0:00:03]} 49. f7+ {[%clk 0:01:42]}  Kf8 {[%clk 0:00:04]} 50. Kf6 {[%clk 0:01:42]}  b4 {[%clk 0:00:03]} 51. axb4 {[%clk 0:01:42]}  h4 {[%clk 0:00:03]} 52. Kg6 {[%clk 0:01:38]}  hxg3 {[%clk 0:00:04]} 53. hxg3 {[%clk 0:01:39]}  Ke7 {[%clk 0:00:03]} 54. Kg7 {[%clk 0:01:38]}  Kd6 {[%clk 0:00:03]} 55. f8=Q+ {[%clk 0:01:38]} 1-0


[Site "https://www.chess.com"]

[Event "Titled Tuesday Blitz April 25 Early 2023"]
[White "Principe, Alexander"]
[Black "Kollars, Dmitrij"]
[WhiteFideId "3804542"]
[BlackFideId "12909572"]
[WhiteElo "2203"]
[BlackElo "2584"]
[Result "0-1"]
[Round "01"]
[TimeControl "180+2"]
[Date "2023.04.25"]
[WhiteClock "0:00:18"]
[BlackClock "0:00:25"]

1. e4 {[%clk 0:03:00]}  c5 {[%clk 0:02:58]} 2. Nf3 {[%clk 0:02:58]}  d6 {[%clk 0:02:53]} 3. d4 {[%clk 0:02:57]}  cxd4 {[%clk 0:02:54]} 4. Nxd4 {[%clk 0:02:58]}  Nf6 {[%clk 0:02:54]} 5. Nc3 {[%clk 0:02:58]}  Nc6 {[%clk 0:02:54]} 6. Bg5 {[%clk 0:02:59]}  e6 {[%clk 0:02:54]} 7. Qd2 {[%clk 0:02:58]}  a6 {[%clk 0:02:54]} 8. f3 {[%clk 0:02:51]}  Bd7 {[%clk 0:02:53]} 9. O-O-O {[%clk 0:02:44]}  Nxd4 {[%clk 0:02:51]} 10. Qxd4 {[%clk 0:02:43]}  h6 {[%clk 0:02:51]} 11. Be3 {[%clk 0:02:38]}  Bc6 {[%clk 0:02:51]} 12. Qb6 {[%clk 0:02:37]}  d5 {[%clk 0:02:32]} 13. exd5 {[%clk 0:02:25]}  Nxd5 {[%clk 0:02:31]} 14. Nxd5 {[%clk 0:02:15]}  Bxd5 {[%clk 0:02:32]} 15. Qxd8+ {[%clk 0:02:13]}  Rxd8 {[%clk 0:02:33]} 16. Bd3 {[%clk 0:02:00]}  Be7 {[%clk 0:02:32]} 17. a3 {[%clk 0:01:58]}  Rc8 {[%clk 0:02:27]} 18. Bd4 {[%clk 0:01:54]}  O-O {[%clk 0:02:22]} 19. Kb1 {[%clk 0:01:47]}  Rfd8 {[%clk 0:02:21]} 20. Be2 {[%clk 0:01:37]}  f6 {[%clk 0:02:19]} 21. Rd2 {[%clk 0:01:31]}  e5 {[%clk 0:02:09]} 22. Be3 {[%clk 0:01:31]}  Be6 {[%clk 0:02:08]} 23. Rhd1 {[%clk 0:01:30]}  Rxd2 {[%clk 0:02:07]} 24. Rxd2 {[%clk 0:01:31]}  Kf7 {[%clk 0:02:08]} 25. f4 {[%clk 0:01:22]}  Bc5 {[%clk 0:01:56]} 26. Bxc5 {[%clk 0:01:17]}  Rxc5 {[%clk 0:01:57]} 27. Bf3 {[%clk 0:01:15]}  b6 {[%clk 0:01:52]} 28. fxe5 {[%clk 0:01:15]}  Rxe5 {[%clk 0:01:53]} 29. b3 {[%clk 0:01:15]}  g5 {[%clk 0:01:51]} 30. h3 {[%clk 0:01:12]}  Ke7 {[%clk 0:01:50]} 31. Re2 {[%clk 0:01:09]}  Kd6 {[%clk 0:01:48]} 32. Kc1 {[%clk 0:01:08]}  f5 {[%clk 0:01:43]} 33. Kd2 {[%clk 0:01:06]}  g4 {[%clk 0:01:39]} 34. hxg4 {[%clk 0:01:06]}  fxg4 {[%clk 0:01:40]} 35. Be4 {[%clk 0:01:06]}  g3 {[%clk 0:01:28]} 36. Kd3 {[%clk 0:00:47]}  h5 {[%clk 0:01:25]} 37. Kd4 {[%clk 0:00:46]}  h4 {[%clk 0:00:55]} 38. Re3 {[%clk 0:00:32]}  Bd5 {[%clk 0:00:25]} 39. Bxd5 {[%clk 0:00:19]}  Rxd5+ {[%clk 0:00:26]} 40. Kc3 {[%clk 0:00:19]}  Rd1 {[%clk 0:00:26]} 41. Re4 {[%clk 0:00:18]}  h3 {[%clk 0:00:25]} 0-1


[Site "https://www.chess.com"]

[Event "Titled Tuesday Blitz April 25 Early 2023"]
[White "Paravyan, David"]
[Black "Degenbaev, Aziz"]
[WhiteFideId "4194985"]
[BlackFideId "13802640"]
[WhiteElo "2563"]
[BlackElo "2152"]
[Result "1-0"]
[Round "01"]
[TimeControl "180+2"]
[Date "2023.04.25"]
[WhiteClock "0:00:12"]
[BlackClock "0:00:03"]

1. e4 {[%clk 0:02:53]}  c5 {[%clk 0:02:57]} 2. Nf3 {[%clk 0:02:54]}  d6 {[%clk 0:02:56]} 3. d4 {[%clk 0:02:54]}  cxd4 {[%clk 0:02:57]} 4. Nxd4 {[%clk 0:02:55]}  Nf6 {[%clk 0:02:57]} 5. Nc3 {[%clk 0:02:55]}  a6 {[%clk 0:02:58]} 6. f3 {[%clk 0:02:55]}  e5 {[%clk 0:02:57]} 7. Nb3 {[%clk 0:02:55]}  Be7 {[%clk 0:02:34]} 8. Be3 {[%clk 0:02:54]}  Be6 {[%clk 0:02:32]} 9. Qd2 {[%clk 0:02:53]}  h5 {[%clk 0:02:32]} 10. Be2 {[%clk 0:02:49]}  Nbd7 {[%clk 0:02:28]} 11. O-O {[%clk 0:02:47]}  Rc8 {[%clk 0:02:17]} 12. a4 {[%clk 0:02:46]}  O-O {[%clk 0:02:13]} 13. a5 {[%clk 0:02:44]}  Nc5 {[%clk 0:02:07]} 14. Nxc5 {[%clk 0:02:40]}  dxc5 {[%clk 0:02:07]} 15. Rfd1 {[%clk 0:02:38]}  Qxd2 {[%clk 0:01:59]} 16. Rxd2 {[%clk 0:02:39]}  Rfd8 {[%clk 0:01:56]} 17. Rxd8+ {[%clk 0:02:35]}  Rxd8 {[%clk 0:01:56]} 18. Na4 {[%clk 0:02:30]}  Nd7 {[%clk 0:01:20]} 19. b3 {[%clk 0:02:25]}  Rc8 {[%clk 0:01:20]} 20. Nb2 {[%clk 0:02:21]}  Nb8 {[%clk 0:01:19]} 21. Bc4 {[%clk 0:02:20]}  Nc6 {[%clk 0:01:15]} 22. Bxe6 {[%clk 0:02:18]}  fxe6 {[%clk 0:01:15]} 23. c3 {[%clk 0:02:18]}  Rd8 {[%clk 0:01:14]} 24. Kf2 {[%clk 0:02:16]}  Rd7 {[%clk 0:01:06]} 25. Ke2 {[%clk 0:02:15]}  Kf7 {[%clk 0:01:01]} 26. Nd3 {[%clk 0:02:06]}  Rc7 {[%clk 0:00:53]} 27. Bxc5 {[%clk 0:02:03]}  Bxc5 {[%clk 0:00:45]} 28. Nxc5 {[%clk 0:02:04]}  Na7 {[%clk 0:00:45]} 29. b4 {[%clk 0:02:01]}  Nb5 {[%clk 0:00:44]} 30. Kd3 {[%clk 0:02:02]}  Kf6 {[%clk 0:00:41]} 31. Rd1 {[%clk 0:01:58]}  g5 {[%clk 0:00:41]} 32. Kc2 {[%clk 0:01:57]}  g4 {[%clk 0:00:41]} 33. fxg4 {[%clk 0:01:45]}  hxg4 {[%clk 0:00:41]} 34. Rd7 {[%clk 0:01:46]}  Rc8 {[%clk 0:00:30]} 35. Rxb7 {[%clk 0:01:43]}  Rh8 {[%clk 0:00:31]} 36. Nxa6 {[%clk 0:01:39]}  Nd6 {[%clk 0:00:30]} 37. Rb6 {[%clk 0:01:39]}  Nxe4 {[%clk 0:00:28]} 38. Nc7 {[%clk 0:01:37]}  Rxh2 {[%clk 0:00:27]} 39. Nd5+ {[%clk 0:01:33]}  Kg5 {[%clk 0:00:26]} 40. Rxe6 {[%clk 0:01:24]}  Rxg2+ {[%clk 0:00:25]} 41. Kd3 {[%clk 0:01:23]}  Nf2+ {[%clk 0:00:26]} 42. Kc4 {[%clk 0:01:22]}  Kf5 {[%clk 0:00:23]} 43. Re8 {[%clk 0:01:12]}  Nd1 {[%clk 0:00:23]} 44. a6 {[%clk 0:01:08]}  Ra2 {[%clk 0:00:24]} 45. b5 {[%clk 0:01:06]}  g3 {[%clk 0:00:24]} 46. Rg8 {[%clk 0:01:01]}  g2 {[%clk 0:00:23]} 47. Nb4 {[%clk 0:01:02]}  Ra3 {[%clk 0:00:19]} 48. Nd5 {[%clk 0:00:48]}  Ra2 {[%clk 0:00:17]} 49. b6 {[%clk 0:00:35]}  Rxa6 {[%clk 0:00:17]} 50. b7 {[%clk 0:00:36]}  Ra4+ {[%clk 0:00:14]} 51. Kb5 {[%clk 0:00:18]}  Rg4 {[%clk 0:00:06]} 52. Rxg4 {[%clk 0:00:14]}  Kxg4 {[%clk 0:00:05]} 53. b8=Q {[%clk 0:00:15]}  Kf3 {[%clk 0:00:04]} 54. Qf8+ {[%clk 0:00:14]}  Ke2 {[%clk 0:00:03]} 55. Qg7 {[%clk 0:00:12]}  Kf1 {[%clk 0:00:03]} 56. Qf6+ {[%clk 0:00:12]} 1-0


[Site "https://www.chess.com"]

[Event "Titled Tuesday Blitz April 25 Early 2023"]
[White "Tang, Andrew"]
[Black "Pauly, Carlo"]
[WhiteFideId "2059630"]
[BlackFideId "24673269"]
[WhiteElo "2596"]
[BlackElo "2254"]
[Result "1-0"]
[Round "01"]
[TimeControl "180+2"]
[Date "2023.04.25"]
[WhiteClock "0:00:04"]
[BlackClock "0:00:30"]

1. d4 {[%clk 0:02:30]}  Nf6 {[%clk 0:02:58]} 2. c4 {[%clk 0:02:25]}  g6 {[%clk 0:02:58]} 3. f3 {[%clk 0:02:25]}  Bg7 {[%clk 0:02:57]} 4. e4 {[%clk 0:02:25]}  d6 {[%clk 0:02:57]} 5. Nc3 {[%clk 0:02:23]}  O-O {[%clk 0:02:57]} 6. Nge2 {[%clk 0:02:21]}  c5 {[%clk 0:02:56]} 7. d5 {[%clk 0:02:20]}  e6 {[%clk 0:02:52]} 8. Ng3 {[%clk 0:02:19]}  exd5 {[%clk 0:02:49]} 9. cxd5 {[%clk 0:02:18]}  h5 {[%clk 0:02:47]} 10. Bg5 {[%clk 0:02:17]}  a6 {[%clk 0:02:46]} 11. a4 {[%clk 0:02:13]}  Nbd7 {[%clk 0:02:45]} 12. Be2 {[%clk 0:02:08]}  Qc7 {[%clk 0:02:42]} 13. Qd2 {[%clk 0:02:08]}  Nh7 {[%clk 0:02:38]} 14. Bh6 {[%clk 0:00:23]}  h4 {[%clk 0:02:34]} 15. Bxg7 {[%clk 0:00:23]}  Kxg7 {[%clk 0:02:35]} 16. Nf1 {[%clk 0:00:23]}  f5 {[%clk 0:01:50]} 17. exf5 {[%clk 0:00:23]}  gxf5 {[%clk 0:01:50]} 18. Ne3 {[%clk 0:00:20]}  Ne5 {[%clk 0:01:48]} 19. f4 {[%clk 0:00:20]}  Ng6 {[%clk 0:01:44]} 20. O-O {[%clk 0:00:20]}  Bd7 {[%clk 0:01:40]} 21. Rac1 {[%clk 0:00:14]}  Rae8 {[%clk 0:01:36]} 22. Bd3 {[%clk 0:00:11]}  Qc8 {[%clk 0:01:16]} 23. Rf3 {[%clk 0:00:10]}  Nf6 {[%clk 0:01:16]} 24. Qc2 {[%clk 0:00:10]}  Nh5 {[%clk 0:01:03]} 25. Ne2 {[%clk 0:00:07]}  b5 {[%clk 0:00:57]} 26. axb5 {[%clk 0:00:06]}  axb5 {[%clk 0:00:58]} 27. Rcf1 {[%clk 0:00:06]}  c4 {[%clk 0:00:56]} 28. Qc3+ {[%clk 0:00:06]}  Kh6 {[%clk 0:00:54]} 29. Bc2 {[%clk 0:00:05]}  Qc5 {[%clk 0:00:51]} 30. Nd4 {[%clk 0:00:06]}  Ng7 {[%clk 0:00:43]} 31. Kh1 {[%clk 0:00:06]}  Rc8 {[%clk 0:00:35]} 32. Rh3 {[%clk 0:00:05]}  b4 {[%clk 0:00:35]} 33. Qd2 {[%clk 0:00:05]}  c3 {[%clk 0:00:34]} 34. bxc3 {[%clk 0:00:06]}  bxc3 {[%clk 0:00:35]} 35. Qf2 {[%clk 0:00:05]}  Qxd4 {[%clk 0:00:33]} 36. Ng4+ {[%clk 0:00:04]}  fxg4 {[%clk 0:00:32]} 37. Rxh4+ {[%clk 0:00:04]}  Nxh4 {[%clk 0:00:31]} 38. Qxh4+ {[%clk 0:00:04]}  Nh5 {[%clk 0:00:30]} 39. Qg5# {[%clk 0:00:04]} 1-0


[Site "https://www.chess.com"]

[Event "Titled Tuesday Blitz April 25 Early 2023"]
[White "Reprintsev, Alexander"]
[Black "Eljanov, Pavel"]
[WhiteFideId "14100541"]
[BlackFideId "14102951"]
[WhiteElo "2211"]
[BlackElo "2598"]
[Result "1-0"]
[Round "01"]
[TimeControl "180+2"]
[Date "2023.04.25"]
[WhiteClock "0:00:24"]
[BlackClock "0:00:01"]

1. e4 {[%clk 0:02:47]}  c6 {[%clk 0:02:59]} 2. Nc3 {[%clk 0:02:46]}  d5 {[%clk 0:03:00]} 3. Nf3 {[%clk 0:02:46]}  dxe4 {[%clk 0:03:00]} 4. Nxe4 {[%clk 0:02:46]}  Nf6 {[%clk 0:03:00]} 5. Qe2 {[%clk 0:02:46]}  Nxe4 {[%clk 0:02:59]} 6. Qxe4 {[%clk 0:02:46]}  Nd7 {[%clk 0:02:59]} 7. Bc4 {[%clk 0:02:44]}  Nf6 {[%clk 0:02:59]} 8. Ne5 {[%clk 0:02:44]}  e6 {[%clk 0:02:59]} 9. Qe2 {[%clk 0:02:44]}  b5 {[%clk 0:02:52]} 10. Bd3 {[%clk 0:02:44]}  Qc7 {[%clk 0:02:49]} 11. a4 {[%clk 0:02:40]}  Bd6 {[%clk 0:02:49]} 12. Nxc6 {[%clk 0:02:33]}  b4 {[%clk 0:02:49]} 13. Nd4 {[%clk 0:02:26]}  a6 {[%clk 0:02:40]} 14. b3 {[%clk 0:02:18]}  Bb7 {[%clk 0:02:36]} 15. Bb2 {[%clk 0:02:16]}  O-O {[%clk 0:02:31]} 16. O-O-O {[%clk 0:02:13]}  Rfd8 {[%clk 0:02:18]} 17. Nf3 {[%clk 0:01:50]}  Nd5 {[%clk 0:01:44]} 18. g3 {[%clk 0:01:45]}  h6 {[%clk 0:01:22]} 19. Rhe1 {[%clk 0:01:42]}  Be7 {[%clk 0:00:38]} 20. Ne5 {[%clk 0:01:38]}  Nf6 {[%clk 0:00:33]} 21. f4 {[%clk 0:01:34]}  Rac8 {[%clk 0:00:33]} 22. Kb1 {[%clk 0:01:32]}  Rxd3 {[%clk 0:00:18]} 23. Qxd3 {[%clk 0:01:30]}  a5 {[%clk 0:00:17]} 24. g4 {[%clk 0:01:23]}  Nd5 {[%clk 0:00:17]} 25. Rf1 {[%clk 0:01:22]}  Rd8 {[%clk 0:00:16]} 26. Qc4 {[%clk 0:01:20]}  Qb6 {[%clk 0:00:14]} 27. Bd4 {[%clk 0:01:18]}  Qd6 {[%clk 0:00:14]} 28. f5 {[%clk 0:01:10]}  Ba6 {[%clk 0:00:14]} 29. Qc6 {[%clk 0:01:08]}  Bxf1 {[%clk 0:00:14]} 30. Qxd6 {[%clk 0:01:07]}  Rxd6 {[%clk 0:00:08]} 31. Rxf1 {[%clk 0:01:07]}  exf5 {[%clk 0:00:08]} 32. Nc4 {[%clk 0:00:45]}  Re6 {[%clk 0:00:05]} 33. gxf5 {[%clk 0:00:44]}  Re2 {[%clk 0:00:04]} 34. h3 {[%clk 0:00:31]}  Rh2 {[%clk 0:00:04]} 35. Be5 {[%clk 0:00:25]}  Rxh3 {[%clk 0:00:03]} 36. Nxa5 {[%clk 0:00:25]}  h5 {[%clk 0:00:03]} 37. Nc6 {[%clk 0:00:25]}  Bf6 {[%clk 0:00:02]} 38. Bxf6 {[%clk 0:00:25]}  gxf6 {[%clk 0:00:03]} 39. a5 {[%clk 0:00:26]}  Nc7 {[%clk 0:00:01]} 40. Nxb4 {[%clk 0:00:25]}  Rh4 {[%clk 0:00:01]} 41. c4 {[%clk 0:00:24]} 1-0


[Site "https://www.chess.com"]

[Event "Titled Tuesday Blitz April 25 Early 2023"]
[White "Hakobyan, Aram"]
[Black "Girsh, Daniel"]
[WhiteFideId "13306677"]
[BlackFideId "30949190"]
[WhiteElo "2584"]
[BlackElo "2075"]
[Result "1-0"]
[Round "01"]
[TimeControl "180+2"]
[Date "2023.04.25"]
[WhiteClock "0:01:12"]
[BlackClock "0:01:00"]

1. d4 {[%clk 0:02:58]}  Nf6 {[%clk 0:02:59]} 2. c4 {[%clk 0:02:58]}  e6 {[%clk 0:02:59]} 3. a3 {[%clk 0:02:57]}  d5 {[%clk 0:02:58]} 4. cxd5 {[%clk 0:02:58]}  exd5 {[%clk 0:02:56]} 5. Nc3 {[%clk 0:02:58]}  c6 {[%clk 0:02:56]} 6. Bf4 {[%clk 0:02:59]}  Bd6 {[%clk 0:02:56]} 7. Bxd6 {[%clk 0:03:00]}  Qxd6 {[%clk 0:02:56]} 8. e3 {[%clk 0:03:01]}  O-O {[%clk 0:02:57]} 9. Bd3 {[%clk 0:03:01]}  Re8 {[%clk 0:02:57]} 10. Nge2 {[%clk 0:03:01]}  Nbd7 {[%clk 0:02:57]} 11. O-O {[%clk 0:03:01]}  Nf8 {[%clk 0:02:58]} 12. Ng3 {[%clk 0:02:58]}  Ng6 {[%clk 0:02:56]} 13. Qd2 {[%clk 0:02:58]}  Bd7 {[%clk 0:02:52]} 14. f3 {[%clk 0:02:56]}  c5 {[%clk 0:02:43]} 15. Rae1 {[%clk 0:02:48]}  cxd4 {[%clk 0:02:40]} 16. exd4 {[%clk 0:02:48]}  Qb6 {[%clk 0:02:40]} 17. Bb1 {[%clk 0:02:31]}  Rxe1 {[%clk 0:02:37]} 18. Rxe1 {[%clk 0:02:32]}  Re8 {[%clk 0:02:37]} 19. Rxe8+ {[%clk 0:02:32]}  Bxe8 {[%clk 0:02:37]} 20. Nf5 {[%clk 0:02:31]}  Bd7 {[%clk 0:02:35]} 21. Ne3 {[%clk 0:02:31]}  Nf4 {[%clk 0:02:31]} 22. g3 {[%clk 0:02:20]}  Ne6 {[%clk 0:02:31]} 23. Nexd5 {[%clk 0:02:20]}  Nxd5 {[%clk 0:02:30]} 24. Nxd5 {[%clk 0:02:20]}  Qxd4+ {[%clk 0:02:30]} 25. Qxd4 {[%clk 0:02:20]}  Nxd4 {[%clk 0:02:31]} 26. Kf2 {[%clk 0:02:18]}  Kf8 {[%clk 0:02:31]} 27. h4 {[%clk 0:02:17]}  Bc6 {[%clk 0:02:31]} 28. Nb4 {[%clk 0:02:02]}  Bb5 {[%clk 0:02:04]} 29. Ke3 {[%clk 0:01:59]}  Nc6 {[%clk 0:02:02]} 30. Nxc6 {[%clk 0:01:51]}  Bxc6 {[%clk 0:02:01]} 31. Be4 {[%clk 0:01:51]}  Bxe4 {[%clk 0:01:58]} 32. Kxe4 {[%clk 0:01:52]}  Ke7 {[%clk 0:01:57]} 33. Ke5 {[%clk 0:01:52]}  f6+ {[%clk 0:01:56]} 34. Kd5 {[%clk 0:01:51]}  Kd7 {[%clk 0:01:56]} 35. h5 {[%clk 0:01:49]}  g6 {[%clk 0:01:50]} 36. g4 {[%clk 0:01:46]}  g5 {[%clk 0:01:37]} 37. b3 {[%clk 0:01:31]}  h6 {[%clk 0:01:29]} 38. b4 {[%clk 0:01:20]}  b5 {[%clk 0:01:28]} 39. Kc5 {[%clk 0:01:18]}  Ke6 {[%clk 0:01:00]} 40. Kxb5 {[%clk 0:01:17]}  Ke5 {[%clk 0:01:01]} 41. Ka6 {[%clk 0:01:12]}  Kf4 {[%clk 0:01:01]} 42. Kxa7 {[%clk 0:01:11]}  Kxf3 {[%clk 0:01:00]} 43. b5 {[%clk 0:01:12]} 1-0


[Site "https://www.chess.com"]

[Event "Titled Tuesday Blitz April 25 Early 2023"]
[White "Ladan, Nicholas"]
[Black "Grigoriants, Sergey"]
[WhiteFideId "30918855"]
[BlackFideId "4130804"]
[WhiteElo "2167"]
[BlackElo "2502"]
[Result "1-0"]
[Round "01"]
[TimeControl "180+2"]
[Date "2023.04.25"]
[WhiteClock "0:00:14"]
[BlackClock "0:00:02"]

1. d4 {[%clk 0:02:59]}  Nf6 {[%clk 0:02:59]} 2. Nf3 {[%clk 0:02:59]}  d5 {[%clk 0:02:58]} 3. Bf4 {[%clk 0:03:00]}  c5 {[%clk 0:02:57]} 4. e3 {[%clk 0:03:00]}  Nc6 {[%clk 0:02:58]} 5. Nbd2 {[%clk 0:03:00]}  cxd4 {[%clk 0:02:57]} 6. exd4 {[%clk 0:03:00]}  Bg4 {[%clk 0:02:58]} 7. c3 {[%clk 0:02:59]}  e6 {[%clk 0:02:58]} 8. Qa4 {[%clk 0:02:56]}  Bd6 {[%clk 0:02:46]} 9. Ba6 {[%clk 0:02:56]}  Bxf4 {[%clk 0:02:29]} 10. Bxb7 {[%clk 0:02:56]}  O-O {[%clk 0:02:29]} 11. Bxc6 {[%clk 0:02:56]}  Rb8 {[%clk 0:02:30]} 12. b4 {[%clk 0:02:46]}  Bxf3 {[%clk 0:02:09]} 13. Nxf3 {[%clk 0:02:45]}  Ne4 {[%clk 0:02:09]} 14. c4 {[%clk 0:02:22]}  Ng5 {[%clk 0:01:26]} 15. Nxg5 {[%clk 0:02:05]}  Qxg5 {[%clk 0:01:27]} 16. O-O {[%clk 0:01:52]}  dxc4 {[%clk 0:01:26]} 17. b5 {[%clk 0:01:37]}  c3 {[%clk 0:01:21]} 18. Qxa7 {[%clk 0:01:32]}  c2 {[%clk 0:01:18]} 19. Qc5 {[%clk 0:01:29]}  c1=Q {[%clk 0:00:57]} 20. Rfxc1 {[%clk 0:01:23]}  Bxc1 {[%clk 0:00:57]} 21. Qxc1 {[%clk 0:01:18]}  Qf6 {[%clk 0:00:54]} 22. a4 {[%clk 0:01:06]}  Qxd4 {[%clk 0:00:53]} 23. a5 {[%clk 0:01:06]}  Rfc8 {[%clk 0:00:38]} 24. a6 {[%clk 0:01:01]}  Rc7 {[%clk 0:00:28]} 25. Qd1 {[%clk 0:00:48]}  Qc5 {[%clk 0:00:14]} 26. Rc1 {[%clk 0:00:44]}  Qa3 {[%clk 0:00:14]} 27. Ra1 {[%clk 0:00:44]}  Qc5 {[%clk 0:00:14]} 28. h3 {[%clk 0:00:32]}  g6 {[%clk 0:00:14]} 29. Qa4 {[%clk 0:00:29]}  Ra7 {[%clk 0:00:06]} 30. Rd1 {[%clk 0:00:29]}  Rc8 {[%clk 0:00:03]} 31. Qd4 {[%clk 0:00:25]}  Qc2 {[%clk 0:00:02]} 32. Rd2 {[%clk 0:00:20]}  Qc1+ {[%clk 0:00:02]} 33. Rd1 {[%clk 0:00:21]}  Qc2 {[%clk 0:00:02]} 34. Qxa7 {[%clk 0:00:16]}  Qxd1+ {[%clk 0:00:01]} 35. Kh2 {[%clk 0:00:16]}  Qd6+ {[%clk 0:00:02]} 36. g3 {[%clk 0:00:16]}  e5 {[%clk 0:00:02]} 37. Qe3 {[%clk 0:00:14]} 1-0


[Site "https://www.chess.com"]

[Event "Titled Tuesday Blitz April 25 Early 2023"]
[White "Abdrlauf, Elham"]
[Black "Arencibia Monduy, Antonio"]
[WhiteFideId "1533533"]
[BlackFideId "3507939"]
[WhiteElo "2469"]
[BlackElo "2501"]
[Result "1-0"]
[Round "01"]
[TimeControl "180+2"]
[Date "2023.04.25"]
[WhiteClock "0:00:15"]
[BlackClock "0:00:01"]

1. e4 {[%clk 0:02:54]}  e6 {[%clk 0:02:58]} 2. d4 {[%clk 0:02:51]}  d5 {[%clk 0:02:58]} 3. Nc3 {[%clk 0:02:51]}  dxe4 {[%clk 0:02:57]} 4. Nxe4 {[%clk 0:02:51]}  Nd7 {[%clk 0:02:57]} 5. Nf3 {[%clk 0:02:49]}  Ngf6 {[%clk 0:02:57]} 6. Nxf6+ {[%clk 0:02:50]}  Nxf6 {[%clk 0:02:57]} 7. Bd3 {[%clk 0:02:50]}  Be7 {[%clk 0:02:57]} 8. O-O {[%clk 0:02:50]}  O-O {[%clk 0:02:57]} 9. Qe2 {[%clk 0:02:50]}  b6 {[%clk 0:02:57]} 10. Bg5 {[%clk 0:02:49]}  Bb7 {[%clk 0:02:57]} 11. Rad1 {[%clk 0:02:49]}  h6 {[%clk 0:02:54]} 12. Bxf6 {[%clk 0:02:44]}  Bxf6 {[%clk 0:02:54]} 13. Be4 {[%clk 0:02:44]}  Bxe4 {[%clk 0:02:54]} 14. Qxe4 {[%clk 0:02:45]}  Qd5 {[%clk 0:02:54]} 15. Qxd5 {[%clk 0:02:41]}  exd5 {[%clk 0:02:55]} 16. Rfe1 {[%clk 0:02:41]}  Rfe8 {[%clk 0:02:55]} 17. Kf1 {[%clk 0:02:42]}  Rxe1+ {[%clk 0:02:41]} 18. Rxe1 {[%clk 0:02:43]}  c5 {[%clk 0:02:32]} 19. Rd1 {[%clk 0:02:40]}  c4 {[%clk 0:02:20]} 20. Ne5 {[%clk 0:02:27]}  Kf8 {[%clk 0:01:49]} 21. f4 {[%clk 0:02:21]}  Ke7 {[%clk 0:01:37]} 22. Re1 {[%clk 0:02:04]}  Bxe5 {[%clk 0:01:31]} 23. Rxe5+ {[%clk 0:01:58]}  Kd6 {[%clk 0:01:31]} 24. g4 {[%clk 0:01:57]}  b5 {[%clk 0:01:24]} 25. Kf2 {[%clk 0:01:54]}  a5 {[%clk 0:01:21]} 26. a3 {[%clk 0:01:30]}  b4 {[%clk 0:01:21]} 27. a4 {[%clk 0:01:30]}  c3 {[%clk 0:00:51]} 28. b3 {[%clk 0:01:30]}  Ra7 {[%clk 0:00:29]} 29. g5 {[%clk 0:00:55]}  h5 {[%clk 0:00:14]} 30. g6 {[%clk 0:00:51]}  fxg6 {[%clk 0:00:08]} 31. Rg5 {[%clk 0:00:52]}  Re7 {[%clk 0:00:01]} 32. Rxg6+ {[%clk 0:00:52]}  Kd7 {[%clk 0:00:02]} 33. Ra6 {[%clk 0:00:32]}  Re4 {[%clk 0:00:01]} 34. Rxa5 {[%clk 0:00:18]}  Rxd4 {[%clk 0:00:02]} 35. Ke3 {[%clk 0:00:19]}  Rd2 {[%clk 0:00:03]} 36. Rb5 {[%clk 0:00:19]}  Kd6 {[%clk 0:00:02]} 37. Rxb4 {[%clk 0:00:19]}  Rxc2 {[%clk 0:00:03]} 38. Kd3 {[%clk 0:00:17]}  Rxh2 {[%clk 0:00:02]} 39. Kxc3 {[%clk 0:00:17]}  Rh3+ {[%clk 0:00:02]} 40. Kc2 {[%clk 0:00:17]}  Rf3 {[%clk 0:00:02]} 41. a5 {[%clk 0:00:17]}  Kc5 {[%clk 0:00:02]} 42. Ra4 {[%clk 0:00:18]}  Rf2+ {[%clk 0:00:02]} 43. Kc1 {[%clk 0:00:16]}  Rf1+ {[%clk 0:00:02]} 44. Kb2 {[%clk 0:00:16]}  Rf2+ {[%clk 0:00:02]} 45. Kb1 {[%clk 0:00:13]}  Rf1+ {[%clk 0:00:02]} 46. Kc2 {[%clk 0:00:13]}  Rf2+ {[%clk 0:00:03]} 47. Kd1 {[%clk 0:00:14]}  Rf1+ {[%clk 0:00:02]} 48. Ke2 {[%clk 0:00:14]}  Rb1 {[%clk 0:00:01]} 49. a6 {[%clk 0:00:15]} 1-0


[Site "https://www.chess.com"]